bitfinex/quotes_BTCUSD_20250904
["timestamp","ask_amount","ask_price","bid_price","bid_amount"]
[1757008682136,3.42610815,110040.0,110030.0,4e-05]
[1757008682350,3.42826081,110040.0,110030.0,4e-05]
[1757008682512,3.41972578,110040.0,110030.0,4e-05]
[1757008682918,0.18183909,110010.0,109970.0,0.35878505]
[1757008683146,0.26844896,110010.0,110000.0,0.00209]
[1757008683503,0.42112896,110010.0,110000.0,0.00209]
[1757008683704,0.44846505,110010.0,110000.0,0.00209]
[1757008684325,1.19963489,110010.0,110000.0,0.00209]
[1757008684940,1.20925547,110010.0,110000.0,0.00533]
[1757008685330,1.70925547,110010.0,110000.0,0.00533]
[1757008685862,1.55657547,110010.0,110000.0,0.00533]
[1757008686084,1.70925547,110010.0,110000.0,0.00733]
[1757008686283,0.95808563,110010.0,110000.0,0.00733]
[1757008686482,1.70925547,110010.0,110000.0,0.00733]
[1757008687616,1.20925547,110010.0,110000.0,0.00733]
[1757008690989,1.05657547,110010.0,110000.0,0.00733]
[1757008691189,1.20925547,110010.0,110000.0,0.00733]
[1757008693782,0.99070576,110010.0,110000.0,0.00733]
[1757008694095,1.17254485,110010.0,110000.0,0.00733]
[1757008694948,1.16292427,110010.0,110000.0,0.00733]
[1757008697850,1.01024427,110010.0,110000.0,0.00733]
[1757008698072,1.16292427,110010.0,110000.0,0.00733]
[1757008698962,1.16490427,110010.0,110000.0,0.00733]
[1757008703869,1.18456533,110010.0,110000.0,0.00733]
[1757008708271,1.18258533,110010.0,110000.0,0.00733]
[1757008708474,1.18254533,110010.0,110000.0,0.00733]
[1757008708688,1.18452533,110010.0,110000.0,0.00733]
[1757008709043,1.18254533,110010.0,110000.0,0.00733]
[1757008712406,1.18452533,110010.0,110000.0,0.00733]
[1757008716449,0.43137549,110010.0,110000.0,0.00733]
[1757008716667,1.18452533,110010.0,110000.0,0.00733]
[1757008717588,1.18464659,110010.0,110000.0,0.00733]
[1757008720066,1.18464659,110010.0,110000.0,0.002]
[1757008720534,1.18464659,110010.0,110000.0,0.00504]
[1757008720747,1.18464659,110010.0,110000.0,0.002]
[1757008729553,1.18464659,110010.0,110000.0,0.00716]
[1757008730156,1.18460659,110010.0,110000.0,0.00716]
[1757008730766,1.03200659,110010.0,110000.0,0.00716]
[1757008730969,1.18262659,110010.0,110000.0,0.00716]
[1757008731176,1.18461659,110010.0,110000.0,0.00716]
[1757008736635,1.03201659,110010.0,110000.0,0.00716]
[1757008736972,1.18461659,110010.0,110000.0,0.00716]
[1757008738370,1.03201659,110010.0,110000.0,0.00716]
[1757008738577,1.18262659,110010.0,110000.0,0.00716]
[1757008739188,1.18461659,110010.0,110000.0,0.00716]
[1757008741643,0.65438104,110010.0,110000.0,0.00716]
[1757008741847,0.80698104,110010.0,110000.0,0.00716]
[1757008744345,1.18460659,110010.0,110000.0,0.002]
[1757008744546,1.18728659,110010.0,110000.0,0.002]
[1757008744754,1.18460659,110010.0,110000.0,0.002]
[1757008747083,0.43331549,110010.0,110000.0,0.00411]
[1757008747402,1.18460659,110010.0,110000.0,0.00712]
[1757008747906,1.18460659,110010.0,110000.0,0.002]
[1757008748822,1.18460659,110010.0,110000.0,0.00712]
[1757008752561,1.04165067,110010.0,110000.0,0.00712]
[1757008752759,1.19223067,110010.0,110000.0,0.00712]
[1757008753687,0.81658512,110010.0,110000.0,0.00712]
[1757008757484,0.66402512,110010.0,110000.0,0.00712]
[1757008757715,0.81658512,110010.0,110000.0,0.00712]
[1757008759144,1.19421067,110010.0,110000.0,0.00712]
[1757008763761,1.66177221,110010.0,110000.0,0.002]
[1757008764018,1.39329898,110010.0,110000.0,0.002]
[1757008764220,1.38689628,110010.0,110000.0,0.002]
[1757008764421,1.39329564,110010.0,110000.0,0.002]
[1757008766073,1.38689628,110010.0,110000.0,0.002]
[1757008770009,1.36244097,110010.0,110000.0,0.002]
[1757008772862,1.33766706,110010.0,110000.0,0.002]
[1757008773166,1.31308666,110010.0,110000.0,0.002]
[1757008775702,1.16052666,110010.0,110000.0,0.002]
[1757008775887,1.31304666,110010.0,110000.0,0.002]
[1757008779064,1.16052666,110010.0,110000.0,0.002]
[1757008779261,1.31304666,110010.0,110000.0,0.002]
[1757008779714,1.3132172,110010.0,110000.0,0.002]
[1757008780111,1.3105372,110010.0,110000.0,0.002]
[1757008782122,1.2862572,110010.0,110000.0,0.002]
[1757008783218,1.3108376,110010.0,110000.0,0.002]
[1757008784712,1.3135176,110010.0,110000.0,0.002]
[1757008785075,1.68924842,110010.0,110000.0,0.002]
[1757008785519,1.78116441,110010.0,110000.0,0.002]
[1757008786412,0.18183471,109990.0,109980.0,0.0032]
[1757008786650,1.15281635,109990.0,109980.0,0.0032]
[1757008786829,1.15281635,109990.0,109980.0,0.00526]
[1757008787037,1.18015565,109990.0,109980.0,0.00526]
[1757008787653,1.18024083,109990.0,109980.0,0.00526]
[1757008788412,1.18223083,109990.0,109980.0,0.00526]
[1757008789073,1.18223083,109990.0,109980.0,0.00726]
[1757008789633,1.18024083,109990.0,109980.0,0.00726]
[1757008791740,0.42877919,109990.0,109980.0,0.00726]
[1757008792123,0.80451001,109990.0,109980.0,0.00726]
[1757008793077,0.5955807,109990.0,109980.0,0.00726]
[1757008793276,0.77741541,109990.0,109980.0,0.00726]
[1757008793519,0.62489541,109990.0,109980.0,0.00726]
[1757008793699,0.77737541,109990.0,109980.0,0.00726]
[1757008794503,0.24916459,109990.0,109980.0,0.00726]
[1757008794803,0.77737541,109990.0,109980.0,0.00726]
[1757008797236,0.40164459,109990.0,109980.0,0.00726]
[1757008797394,0.77737541,109990.0,109980.0,0.00726]
[1757008798372,1.15310623,109990.0,109980.0,0.00726]
[1757008798612,0.77737541,109990.0,109980.0,0.00726]
[1757008799704,0.62489541,109990.0,109980.0,0.00726]
[1757008799911,0.77737541,109990.0,109980.0,0.00726]
[1757008800110,0.62489541,109990.0,109980.0,0.00726]
[1757008800305,0.40131471,109990.0,109980.0,0.00726]
[1757008800532,0.80438577,109990.0,109980.0,0.00726]
[1757008800883,0.62456553,109990.0,109980.0,0.00726]
[1757008801091,0.77704553,109990.0,109980.0,0.00726]
[1757008801500,0.62456553,109990.0,109980.0,0.18911124]
[1757008801706,0.15248,109990.0,109980.0,0.18911124]
[1757008801889,0.33431471,109990.0,109980.0,0.56484206]
[1757008802113,0.33431471,109990.0,109980.0,0.18911124]
[1757008804980,0.71004553,109990.0,109980.0,0.18911124]
[1757008805190,0.71004553,109990.0,109980.0,0.00726]
[1757008805393,0.55756553,109990.0,109980.0,0.18911124]
[1757008805616,0.71004553,109990.0,109980.0,0.00726]
[1757008806046,1.08775635,109990.0,109980.0,0.00726]
[1757008806260,1.15475635,109990.0,109980.0,0.002]
[1757008806884,1.15743635,109990.0,109980.0,0.002]
[1757008807317,1.18477624,109990.0,109980.0,0.002]
[1757008807995,0.80904542,109990.0,109980.0,0.002]
[1757008808221,0.18185124,109980.0,109970.0,0.00306]
[1757008808453,0.71006206,109980.0,109970.0,0.00306]
[1757008808584,0.71006206,109980.0,109970.0,0.0051]
[1757008809630,0.71006206,109980.0,109970.0,0.0071]
[1757008810449,0.33433124,109980.0,109970.0,0.18896778]
[1757008811101,0.33433124,109980.0,109970.0,0.38383082]
[1757008811476,0.33433124,109980.0,109970.0,0.0081]
[1757008812298,0.33433124,109980.0,109970.0,0.18996778]
[1757008812535,0.33433124,109980.0,109970.0,0.0081]
[1757008812739,0.33433124,109980.0,109970.0,0.5656986]
[1757008812883,0.33433124,109980.0,109970.0,0.18996778]
[1757008813281,0.18185124,109980.0,109970.0,0.18996778]
[1757008813491,0.33429124,109980.0,109970.0,0.18996778]
[1757008814138,0.33429124,109980.0,109970.0,0.38383082]
[1757008814689,0.33429124,109980.0,109970.0,0.0081]
[1757008816284,0.33627124,109980.0,109970.0,0.0081]
[1757008817863,0.33627124,109980.0,109970.0,0.003]
[1757008818074,0.71200206,109980.0,109970.0,0.003]
[1757008818251,0.71200206,109980.0,109970.0,0.00504]
[1757008818494,0.18185124,109980.0,109970.0,0.18996778]
[1757008818728,0.71002206,109980.0,109970.0,0.18996778]
[1757008819123,0.18185124,109980.0,109970.0,0.18996778]
[1757008819331,0.33429124,109980.0,109970.0,0.18996778]
[1757008819546,0.067,109990.0,109980.0,0.18185124]
[1757008819759,0.33427471,109990.0,109980.0,0.56268206]
[1757008821258,0.33625471,109990.0,109980.0,0.0051]
[1757008821483,0.71198553,109990.0,109980.0,0.0051]
[1757008821910,0.33625471,109990.0,109980.0,0.0051]
[1757008822121,0.33427471,109990.0,109980.0,0.18695124]
[1757008822348,0.71000553,109990.0,109980.0,0.18695124]
[1757008822542,0.33427471,109990.0,109980.0,0.18695124]
[1757008825335,0.33626471,109990.0,109980.0,0.0051]
[1757008825546,0.33427471,109990.0,109980.0,0.0051]
[1757008826306,0.33427471,109990.0,109980.0,0.18695124]
[1757008827507,0.2182607,110000.0,109980.0,0.56268206]
[1757008827692,0.3615698,110000.0,109990.0,0.55983846]
[1757008827898,0.33423327,110000.0,109990.0,0.56266553]
[1757008828270,0.33423327,110000.0,109990.0,0.18693471]
[1757008828826,0.71096409,110000.0,109990.0,0.18693471]
[1757008828957,0.33523327,110000.0,109990.0,0.18693471]
[1757008829164,0.33623327,110000.0,109990.0,0.18693471]
[1757008829591,0.18381818,110000.0,109990.0,0.56266553]
[1757008829917,0.33521818,110000.0,109990.0,0.56266553]
[1757008830224,0.33621818,110000.0,109990.0,0.18693471]
[1757008830860,0.26757325,110010.0,110000.0,0.18181818]
[1757008831070,0.79768407,110010.0,110000.0,0.0051]
[1757008831907,0.64528407,110010.0,110000.0,0.0051]
[1757008832152,0.79570407,110010.0,110000.0,0.0051]
[1757008832357,0.79768407,110010.0,110000.0,0.0051]
[1757008833209,0.02455988,110040.0,110000.0,1.42923817]
[1757008833431,0.18171995,110060.0,110030.0,0.94231867]
[1757008833637,0.18171995,110060.0,110050.0,0.00204]
[1757008833862,0.25724626,110060.0,110050.0,0.00737169]
[1757008834059,0.07552631,110060.0,110050.0,0.03469142]
[1757008834270,0.07552631,110060.0,110050.0,0.21642699]
[1757008834471,0.00198,110060.0,110050.0,0.2141553]
[1757008834675,0.00198,110060.0,110050.0,0.3665553]
[1757008835330,0.00198,110060.0,110050.0,0.2141553]
[1757008835542,0.00198,110060.0,110050.0,0.3665553]
[1757008835751,0.57619592,110070.0,110050.0,0.3665553]
[1757008836619,0.19137998,110070.0,110060.0,0.18171906]
[1757008836829,0.00957018,110070.0,110060.0,0.18479906]
[1757008837045,0.00957018,110070.0,110060.0,0.18691906]
[1757008837259,0.001,110070.0,110060.0,0.18691906]
[1757008837479,0.002,110070.0,110060.0,0.18691906]
[1757008837697,0.33431524,110080.0,110060.0,0.18691906]
[1757008837907,0.7101869,110080.0,110070.0,0.18170255]
[1757008838117,0.7121669,110080.0,110070.0,0.18170255]
[1757008838922,0.7121669,110080.0,110070.0,0.18690255]
[1757008839335,0.00034084,110080.0,110070.0,0.65454936]
[1757008839537,0.00034084,110080.0,110070.0,0.43117854]
[1757008840157,0.00034084,110080.0,110070.0,0.80690936]
[1757008840366,0.00034084,110080.0,110070.0,0.65454936]
[1757008840567,0.00034084,110080.0,110070.0,0.80690936]
[1757008841099,0.00034084,110080.0,110070.0,0.80890936]
[1757008841528,0.00034084,110080.0,110070.0,0.46045074]
[1757008841736,0.00034084,110080.0,110070.0,0.30813074]
[1757008841912,0.00034084,110080.0,110070.0,0.46045074]
[1757008842135,0.00034084,110080.0,110070.0,0.46145074]
[1757008842341,0.00034084,110080.0,110070.0,0.30913074]
[1757008842547,0.00034084,110080.0,110070.0,0.46145074]
[1757008843171,0.00034084,110080.0,110070.0,0.30913074]
[1757008843372,0.00034084,110080.0,110070.0,0.46145074]
[1757008843580,0.00034084,110080.0,110070.0,0.30913074]
[1757008843786,0.00034084,110080.0,110070.0,0.46145074]
[1757008844200,0.00034084,110080.0,110070.0,0.30913074]
[1757008844397,0.00034084,110080.0,110070.0,0.46145074]
[1757008844830,0.00034084,110080.0,110070.0,0.30913074]
[1757008845031,0.00034084,110080.0,110070.0,0.46145074]
[1757008846736,0.00034084,110080.0,110070.0,0.30913074]
[1757008847108,0.00034084,110080.0,110070.0,0.46145074]
[1757008847772,0.00034084,110080.0,110070.0,0.46141074]
[1757008848673,0.00034084,110080.0,110070.0,0.30913074]
[1757008848889,0.00034084,110080.0,110070.0,0.46141074]
[1757008849435,0.00034084,110080.0,110070.0,0.30913074]
[1757008849701,0.00034084,110080.0,110070.0,0.46141074]
[1757008850059,0.00034084,110080.0,110070.0,0.30913074]
[1757008850255,0.00034084,110080.0,110070.0,0.46141074]
[1757008850936,0.00034084,110080.0,110070.0,0.30913074]
[1757008851143,0.55897177,110080.0,110070.0,0.1825922]
[1757008851456,0.55897177,110080.0,110070.0,0.36429475]
[1757008852039,0.18400688,110080.0,110070.0,0.36641475]
[1757008852258,0.55897177,110080.0,110070.0,0.36949475]
[1757008852485,0.55897177,110080.0,110070.0,0.36737475]
[1757008852666,0.55897177,110080.0,110070.0,0.36429475]
[1757008853032,0.18400688,110080.0,110070.0,0.36429475]
[1757008853234,0.72097993,110090.0,110070.0,0.36429475]
[1757008853235,0.55418387,110090.0,110070.0,0.36641475]
[1757008853501,0.18168604,110080.0,110070.0,0.36949475]
[1757008854486,0.56084807,110090.0,110070.0,0.36849475]
[1757008854690,0.0093442,110090.0,110080.0,0.18476604]
[1757008854837,0.56596394,110100.0,110080.0,0.18688604]
[1757008855040,0.56596394,110100.0,110090.0,0.15228]
[1757008855280,0.56708394,110100.0,110090.0,0.15228]
[1757008855495,0.19211905,110100.0,110090.0,0.15228]
[1757008855706,0.56708394,110100.0,110090.0,0.15228]
[1757008856066,0.56808394,110100.0,110090.0,0.15228]
[1757008856781,0.57762387,110100.0,110090.0,0.15748]
[1757008856992,0.57762387,110100.0,110090.0,0.33914954]
[1757008857374,0.56854122,110100.0,110090.0,0.33914954]
[1757008857536,0.19139297,110100.0,110090.0,0.33914954]
[1757008858081,0.19339297,110100.0,110090.0,0.33914954]
[1757008858299,0.0022,110100.0,110090.0,0.33914954]
[1757008858748,0.18385304,110100.0,110090.0,0.18686954]
[1757008858881,0.0022,110100.0,110090.0,0.33910954]
[1757008860089,0.18385304,110100.0,110090.0,0.33910954]
[1757008860301,0.18497304,110100.0,110090.0,0.00308]
[1757008860520,0.18166954,110090.0,110080.0,0.24864604]
[1757008860726,0.55775443,110090.0,110080.0,0.40608604]
[1757008860905,0.55881793,110100.0,110080.0,0.40608604]
[1757008861122,0.21183593,110100.0,110080.0,0.40608604]
[1757008861320,0.21085728,110100.0,110090.0,0.18474954]
[1757008861522,0.21085728,110100.0,110090.0,0.18686954]
[1757008861754,0.21085728,110100.0,110090.0,0.0052]
[1757008862069,0.21085728,110100.0,110090.0,0.18686954]
[1757008862853,0.20985728,110100.0,110090.0,0.18686954]
[1757008863030,0.02820424,110100.0,110090.0,0.18686954]
[1757008863171,0.20985728,110100.0,110090.0,0.18686954]
[1757008863818,0.21185728,110100.0,110090.0,0.18686954]
[1757008864033,0.21185728,110100.0,110090.0,0.33910954]
[1757008864548,0.21185728,110100.0,110090.0,0.18686954]
[1757008864690,0.21185728,110100.0,110090.0,0.33910954]
[1757008865324,0.23620647,110100.0,110090.0,0.33910954]
[1757008865962,0.05455343,110100.0,110090.0,0.33910954]
[1757008866592,0.05455343,110100.0,110090.0,0.43102553]
[1757008868363,0.23620647,110100.0,110090.0,0.43102553]
[1757008868562,0.23620647,110100.0,110090.0,0.27878553]
[1757008868768,0.23620647,110100.0,110090.0,0.43102553]
[1757008869947,0.05455343,110100.0,110090.0,0.43102553]
[1757008870759,0.23620647,110100.0,110090.0,0.43102553]
[1757008871516,0.23620647,110100.0,110090.0,0.43098553]
[1757008871719,0.05455343,110100.0,110090.0,0.43098553]
[1757008872140,0.03020424,110100.0,110090.0,0.80595042]
[1757008872548,0.02173377,110100.0,110090.0,0.80595042]
[1757008872744,0.02173377,110100.0,110090.0,0.43098553]
[1757008872944,0.02173377,110100.0,110090.0,0.80595042]
[1757008873168,0.02073377,110100.0,110090.0,0.80595042]
[1757008873373,0.0012,110100.0,110090.0,0.80895042]
[1757008873769,0.0002,110100.0,110090.0,0.80895042]
[1757008874239,0.0002,110100.0,110090.0,1.22018046]
[1757008874917,0.0002,110100.0,110090.0,1.21095042]
[1757008875346,0.0002,110100.0,110090.0,1.23825455]
[1757008875969,0.0002,110100.0,110090.0,1.08605455]
[1757008876142,0.0002,110100.0,110090.0,1.23825455]
[1757008876352,0.0002,110100.0,110090.0,1.27923244]
[1757008876860,0.0002,110100.0,110090.0,1.12703244]
[1757008877085,0.0002,110100.0,110090.0,1.27923244]
[1757008877547,0.0002,110100.0,110090.0,1.30017126]
[1757008877752,0.0002,110100.0,110090.0,1.14797126]
[1757008878128,0.0002,110100.0,110090.0,1.30017126]
[1757008880077,0.0002,110100.0,110090.0,1.14797126]
[1757008880404,0.0002,110100.0,110090.0,1.30017126]
[1757008881266,0.0002,110100.0,110090.0,1.14797126]
[1757008881469,0.0002,110100.0,110090.0,1.30017126]
[1757008887354,0.0002,110100.0,110090.0,1.14797126]
[1757008887556,0.0002,110100.0,110090.0,0.92516637]
[1757008887762,0.0002,110100.0,110090.0,0.75206755]
[1757008887988,0.0002,110100.0,110090.0,0.90422755]
[1757008888189,0.0002,110100.0,110090.0,0.75206755]
[1757008888429,0.18297304,110100.0,110090.0,0.12422012]
[1757008888635,0.55661793,110100.0,110090.0,0.09691599]
[1757008888838,0.18165304,110100.0,110090.0,0.24907599]
[1757008889054,0.55661793,110100.0,110090.0,0.15716]
[1757008889466,0.18165304,110100.0,110090.0,0.15716]
[1757008889676,0.18165304,110100.0,110090.0,0.005]
[1757008889804,0.18165304,110100.0,110090.0,0.15716]
[1757008890240,0.18165304,110100.0,110090.0,0.18666954]
[1757008890444,0.18165304,110100.0,110090.0,0.33882954]
[1757008890648,0.18165304,110100.0,110090.0,0.18961954]
[1757008890850,0.18308694,110110.0,110090.0,0.34177954]
[1757008891028,0.18165304,110100.0,110090.0,0.34177954]
[1757008892216,0.18165304,110100.0,110090.0,0.18461954]
[1757008892423,0.18165304,110100.0,110090.0,0.33877954]
[1757008892653,0.18165304,110100.0,110090.0,0.33977954]
[1757008892865,0.18165304,110100.0,110090.0,0.33777954]
[1757008893086,0.18165304,110100.0,110090.0,0.33977954]
[1757008893291,0.18165304,110100.0,110090.0,0.34177954]
[1757008894837,0.18165304,110100.0,110090.0,0.18666954]
[1757008894996,0.18165304,110100.0,110090.0,0.33882954]
[1757008895205,0.18165304,110100.0,110090.0,0.15716]
[1757008895406,0.18165304,110100.0,110090.0,0.33882954]
[1757008895631,0.18165304,110100.0,110090.0,0.15516]
[1757008895832,0.55661793,110100.0,110090.0,0.001]
[1757008896031,0.55661793,110100.0,110090.0,0.15316]
[1757008896232,0.55661793,110100.0,110090.0,0.15416]
[1757008896826,0.55661793,110100.0,110090.0,0.15516]
[1757008897424,0.18165304,110100.0,110090.0,0.15516]
[1757008897619,0.55661793,110100.0,110090.0,0.15516]
[1757008901640,0.55661793,110100.0,110090.0,0.15743086]
[1757008901843,0.55661793,110100.0,110090.0,0.15516]
[1757008903549,0.93161444,110100.0,110090.0,0.15516]
[1757008905123,0.93161444,110100.0,110090.0,0.15743086]
[1757008905594,0.93161444,110100.0,110090.0,0.3444204]
[1757008905841,0.93161444,110100.0,110090.0,0.34214954]
[1757008908000,0.93161444,110100.0,110090.0,0.18998954]
[1757008908230,0.93161444,110100.0,110090.0,0.34214954]
[1757008911770,0.18165304,110100.0,110090.0,0.34214954]
[1757008911902,0.93161444,110100.0,110090.0,0.34214954]
[1757008914979,0.18308694,110110.0,110090.0,0.34214954]
[1757008915181,0.55663374,110100.0,110090.0,0.33894954]
[1757008915634,0.93161444,110100.0,110090.0,0.33894954]
[1757008915836,0.93161444,110100.0,110090.0,0.34114954]
[1757008918037,0.93161444,110100.0,110090.0,0.18898954]
[1757008918301,0.93161444,110100.0,110090.0,0.34114954]
[1757008918443,0.93161444,110100.0,110090.0,0.34214954]
[1757008918883,0.93161444,110100.0,110090.0,0.3591457]
[1757008919286,0.55663374,110100.0,110090.0,0.3591457]
[1757008920455,0.18308694,110110.0,110100.0,0.18165304]
[1757008920659,0.37642987,110110.0,110100.0,0.2039692]
[1757008922480,0.37642987,110110.0,110100.0,0.18697304]
[1757008923704,0.00144917,110110.0,110100.0,0.27888903]
[1757008923912,0.00144917,110110.0,110100.0,0.72082973]
[1757008924119,0.00144917,110110.0,110100.0,0.74813342]
[1757008924930,0.00144917,110110.0,110100.0,0.90029342]
[1757008925172,0.00144917,110110.0,110100.0,0.52531272]
[1757008926210,0.37642987,110110.0,110100.0,0.52531272]
[1757008927195,0.00144917,110110.0,110100.0,0.90029342]
[1757008929276,0.00144917,110110.0,110100.0,0.94193051]
[1757008929640,0.00144917,110110.0,110100.0,1.31691121]
[1757008930043,0.00144917,110110.0,110100.0,0.94193051]
[1757008930495,0.00144917,110110.0,110100.0,1.67785003]
[1757008930675,0.00144917,110110.0,110100.0,2.05283073]
[1757008930877,0.0002,110130.0,110120.0,0.95252027]
[1757008931114,0.00066931,110130.0,110120.0,1.11135626]
[1757008931300,0.00066931,110130.0,110120.0,1.26858626]
[1757008931723,0.00066931,110130.0,110120.0,1.66858626]
[1757008932237,0.00066931,110130.0,110120.0,1.69887903]
[1757008933610,0.00066931,110130.0,110120.0,1.70087903]
[1757008933812,0.00066931,110130.0,110120.0,1.54875903]
[1757008933951,0.00066931,110130.0,110120.0,1.70087903]
[1757008936253,0.00066931,110130.0,110120.0,1.54875903]
[1757008936459,0.00066931,110130.0,110120.0,1.70087903]
[1757008936690,0.00066931,110130.0,110120.0,1.32589833]
[1757008936881,0.00066931,110130.0,110120.0,1.70087903]
[1757008937688,0.00066931,110130.0,110120.0,1.32589833]
[1757008937940,0.00066931,110130.0,110120.0,1.17377833]
[1757008938112,0.00066931,110130.0,110120.0,1.32589833]
[1757008939465,0.00066931,110130.0,110120.0,1.54875903]
[1757008939845,0.00066931,110130.0,110120.0,1.70083903]
[1757008943324,0.00066931,110130.0,110120.0,1.32585833]
[1757008946000,0.00066931,110130.0,110120.0,0.79879763]
[1757008946414,0.00066931,110130.0,110120.0,1.32585833]
[1757008948448,0.00066931,110130.0,110120.0,1.70083903]
[1757008949043,0.00066931,110130.0,110120.0,2.04083903]
[1757008957610,1e-08,110130.0,110120.0,2.41581973]
[1757008957971,1e-08,110130.0,110120.0,2.46581973]
[1757008958981,1e-08,110130.0,110120.0,2.46081973]
[1757008959413,1e-08,110130.0,110120.0,2.47081973]
[1757008959809,1e-08,110130.0,110120.0,2.46781973]
[1757008960115,1e-08,110130.0,110120.0,1.94475903]
[1757008960347,1e-08,110130.0,110120.0,1.89475903]
[1757008960555,1e-08,110130.0,110120.0,1.27589881]
[1757008960777,1e-08,110130.0,110120.0,1.65087951]
[1757008960991,1e-08,110130.0,110120.0,1.67181833]
[1757008961168,1e-08,110130.0,110120.0,1.65087951]
[1757008961694,1e-08,110130.0,110120.0,1.67181833]
[1757008962469,1e-08,110130.0,110120.0,1.51977833]
[1757008962695,1e-08,110130.0,110120.0,1.67181833]
[1757008963453,1e-08,110130.0,110120.0,1.29683763]
[1757008966035,1e-08,110130.0,110120.0,1.67141475]
[1757008971658,0.37457713,110130.0,110120.0,1.29683763]
[1757008971862,1e-08,110130.0,110120.0,0.55172763]
[1757008972084,1e-08,110130.0,110120.0,0.55476763]
[1757008972288,1e-08,110130.0,110120.0,0.55273763]
[1757008972488,1e-08,110130.0,110120.0,0.54573763]
[1757008972724,1e-08,110130.0,110120.0,0.54873763]
[1757008973839,1e-08,110130.0,110120.0,0.55173763]
[1757008980353,1e-08,110130.0,110120.0,0.37875881]
[1757008980523,1e-08,110130.0,110120.0,0.52882881]
[1757008980941,1e-08,110130.0,110120.0,0.53079881]
[1757008981149,1e-08,110130.0,110120.0,0.52479881]
[1757008981355,1e-08,110130.0,110120.0,0.52579881]
[1757008981759,1e-08,110130.0,110120.0,0.52679881]
[1757008981975,1e-08,110130.0,110120.0,0.92331475]
[1757008982193,1e-08,110130.0,110120.0,0.92131475]
[1757008982612,1e-08,110130.0,110120.0,0.92331475]
[1757008982825,1e-08,110140.0,110120.0,0.92331475]
[1757008983030,0.00098652,110170.0,110160.0,0.54249292]
[1757008983240,0.00098652,110170.0,110160.0,1.2280867]
[1757008983486,0.00028,110180.0,110170.0,0.18153762]
[1757008983696,0.00028,110180.0,110170.0,0.42853361]
[1757008983928,0.00028,110180.0,110170.0,0.43050361]
[1757008984785,0.00028,110180.0,110170.0,0.43150361]
[1757008986516,0.00028,110180.0,110170.0,0.47251309]
[1757008986715,0.00028,110180.0,110170.0,0.47247309]
[1757008988662,0.00028,110180.0,110170.0,0.87433535]
[1757008988891,0.00028,110180.0,110170.0,0.83332587]
[1757008990487,0.00028,110180.0,110170.0,0.32768757]
[1757008990691,0.00028,110180.0,110170.0,1.19426469]
[1757008991889,0.00028,110180.0,110170.0,0.81968757]
[1757008992093,0.00028,110180.0,110170.0,1.23515966]
[1757008994402,0.0002,110190.0,110180.0,0.18152114]
[1757008994630,0.0002,110190.0,110180.0,0.87004425]
[1757008994801,0.0002,110190.0,110180.0,0.87203425]
[1757008995005,0.0002,110190.0,110180.0,0.89931666]
[1757008996831,0.0002,110190.0,110180.0,0.92025548]
[1757008997217,0.0002,110190.0,110180.0,0.76829548]
[1757008997439,0.0002,110190.0,110180.0,0.92025548]
[1757008997847,0.0002,110190.0,110180.0,0.92125548]
[1757008998355,0.0002,110190.0,110180.0,0.94667836]
[1757008998621,0.0002,110190.0,110180.0,1.32125548]
[1757009000243,0.0002,110190.0,110180.0,1.16929548]
[1757009000430,0.0002,110190.0,110180.0,1.32125548]
[1757009002167,0.0002,110190.0,110180.0,1.16929548]
[1757009002391,0.0002,110190.0,110180.0,1.32125548]
[1757009002983,0.0002,110190.0,110180.0,0.92125548]
[1757009003242,0.0002,110190.0,110180.0,0.39471836]
[1757009003467,0.0002,110190.0,110180.0,0.94468836]
[1757009003707,0.0002,110190.0,110180.0,0.92374954]
[1757009004112,0.0002,110190.0,110180.0,0.92573954]
[1757009004341,0.0002,110190.0,110180.0,1.30031666]
[1757009004784,0.19177846,110210.0,110200.0,0.1814882]
[1757009005012,0.19177846,110210.0,110200.0,0.3334082]
[1757009005234,0.24522213,110220.0,110210.0,0.18147173]
[1757009005235,0.23614937,110220.0,110210.0,0.18147173]
[1757009005462,0.42926733,110220.0,110210.0,0.33339173]
[1757009005850,0.6107226,110220.0,110210.0,0.33339173]
[1757009006055,0.61080778,110220.0,110210.0,0.33339173]
[1757009008257,0.23623066,110220.0,110210.0,0.33339173]
[1757009008460,0.61080778,110220.0,110210.0,0.33339173]
[1757009010041,0.42935251,110220.0,110210.0,0.33339173]
[1757009010271,0.61080778,110220.0,110210.0,0.33339173]
[1757009010469,0.42935251,110220.0,110210.0,0.33339173]
[1757009011711,0.61080778,110220.0,110210.0,0.33339173]
[1757009012120,0.05477539,110220.0,110210.0,0.33339173]
[1757009012289,0.61930523,110220.0,110210.0,0.33339173]
[1757009012836,0.43784996,110220.0,110210.0,0.33339173]
[1757009013335,0.43784996,110220.0,110210.0,0.33099638]
[1757009013581,0.43784996,110220.0,110210.0,0.33089752]
[1757009013582,0.61930523,110220.0,110210.0,0.33089752]
[1757009014900,0.63888899,110220.0,110210.0,0.33089752]
[1757009015133,0.63888899,110220.0,110200.0,0.1846782]
[1757009015339,0.26431187,110220.0,110210.0,0.33339173]
[1757009015538,0.26431187,110220.0,110210.0,0.33100938]
[1757009016486,0.63888899,110220.0,110210.0,0.33100938]
[1757009017505,0.0561466,110220.0,110210.0,0.33617938]
[1757009018389,0.02961556,110220.0,110210.0,0.33617938]
[1757009018597,0.0100318,110220.0,110210.0,0.49497537]
[1757009018805,0.00153435,110220.0,110210.0,0.52225307]
[1757009025704,0.00153435,110220.0,110210.0,0.89626347]
[1757009025965,0.55700002,110220.0,110210.0,0.37271542]
[1757009026162,0.18145527,110220.0,110210.0,0.27868943]
[1757009026349,0.18145527,110220.0,110210.0,0.43056943]
[1757009026557,0.18145527,110220.0,110210.0,0.43267943]
[1757009027132,0.5817978,110230.0,110210.0,0.43267943]
[1757009027374,0.18145527,110220.0,110210.0,0.43267943]
[1757009028059,0.55546567,110220.0,110210.0,0.2460377]
[1757009028272,0.55546567,110220.0,110210.0,0.42750943]
[1757009028485,0.92947607,110220.0,110210.0,0.40023173]
[1757009028708,0.18145527,110220.0,110210.0,0.40540173]
[1757009028929,0.2077874,110230.0,110220.0,0.18145527]
[1757009029249,0.2358939,110230.0,110220.0,0.18145527]
[1757009029627,0.2358939,110230.0,110210.0,0.40329173]
[1757009030316,0.7480208,110220.0,110210.0,0.40329173]
[1757009030458,0.7480208,110220.0,110210.0,0.40540173]
[1757009030860,0.20778658,110230.0,110220.0,0.18145527]
[1757009031060,0.20778658,110230.0,110220.0,0.18662527]
[1757009031472,0.205065,110230.0,110220.0,0.18662527]
[1757009031892,0.5790754,110230.0,110220.0,0.18662527]
[1757009032090,0.3976366,110230.0,110220.0,0.18662527]
[1757009032700,0.205065,110230.0,110220.0,0.18662527]